Cogmind - Beta 14 @@@ ROGUE MODE // 2024.08.31 @ 02:13:29 Player: CanadianCogs Result: Destroyed by P-60 Hacker with Shock Rifle Performance ------------- Evolutions (2) 1000 Regions Visited (6) 1200 Robots Destroyed (36) 180 Value Destroyed (1874) 1874 Prototype IDs (5) 100 Alien Tech Used (0) 0 Bonus (1248) 1248 TOTAL SCORE: 5602 Bonus ------- High Alert Combat Kills 128 Follower Combat Kills 120 Entered Garrisons 200 Used RIF Installer 500 Aligned with FarCom 300 Cogmind --------- Core Integrity 0/550 Matter 92/300 Energy 150/150 System Corruption 49% Temperature Cool (1) Movement Hovering (240) Ox3 Location -8/Garrison Parts ------- > --- POWER (1) -------- Micro Nuclear Core > --- PROPULSION (2) --- Gravmag System > --- UTILITY (6) ------ Large Storage Unit Structural Scanner (fused) ECM Suite Relay Coupler [NC] (24) Relay Coupler [NC] (31) Supersonic Drone Bay (1/1) (fused) > --- WEAPON (2) ------- Axe Axe > --- INVENTORY (15) --- ECM Suite ECM Suite ECM Suite ECM Suite ECM Suite Relay Coupler [NC] (39) Relay Coupler [Grunt] (40) Remote Datajack Axe Axe Peak State ------------ > --- POWER ------------ Fission Core > --- PROPULSION ------- Carbon-fiber Leg Flexi-carbon Leg > --- UTILITY ---------- Large Storage Unit Seismic Detector Light Armor Plating Light Armor Plating Light Armor Plating Supersonic Drone Bay > --- WEAPON ----------- Enhanced Autogun Gauss Rifle > --- INVENTORY -------- Structural Scanner Sensor Array ECM Suite ECM Suite ECM Suite ECM Suite ECM Suite ECM Suite Relay Coupler [NC] Relay Coupler [NC] Heavy Assault Rifle Axe Axe Axe Axe [Rating: 36] Favorites ----------- Power Ion Engine Engine Ion Engine Power Core Nuclear Core Propulsion Compact Wheel Leg Carbon-fiber Leg Wheel Compact Wheel Hover Unit Gravmag System Utility Large Storage Unit Device Seismic Detector Storage Large Storage Unit Processor Improved Signal Interpreter Hackware Relay Coupler [NC] Protection Light Armor Plating Weapon Beam Cannon Energy Gun EM Pulse Gun Energy Cannon Beam Cannon Ballistic Gun Gauss Rifle Ballistic Cannon Bore Cannon Special Weapon Field Lobotomy Kit Slashing Weapon Axe Build | -11 -10 -10 -10 -9 -8 -8 ------- Run | Yrd Mat Min Exi Min Mat Gar Slots Evolved 4 | . . . . . 4 . Power . | . . . . . . . Propulsion . | . . . . . . . Utility 4 | . . . . . 4 . Weapon . | . . . . . . . Parts Attached 78 | 7 6 . 4 2 16 43 Power 9 | 1 1 . . . 1 6 Engine 4 | 1 1 . . . 1 1 Core 5 | . . . . . . 5 Reactor . | . . . . . . . Propulsion 13 | 2 . . . . 2 9 Treads . | . . . . . . . Leg 5 | . . . . . . 5 Wheel 4 | 2 . . . . 2 . Hover 4 | . . . . . . 4 Flight . | . . . . . . . Utility 32 | 2 2 . 2 2 5 19 Device 20 | 1 1 . 2 2 3 11 Storage 2 | 1 1 . . . . . Processor 2 | . . . . . 2 . Hackware 2 | . . . . . . 2 Protection 6 | . . . . . . 6 Artifact . | . . . . . . . Weapon 24 | 2 3 . 2 . 8 9 Energy Gun 10 | 2 1 . . . 6 1 Energy Cannon 4 | . 2 . 1 . 1 . Ballistic Gun 6 | . . . . . 1 5 Ballistic Cannon 1 | . . . . . . 1 Launcher . | . . . . . . . Special Weapon 1 | . . . 1 . . . Impact Weapon . | . . . . . . . Slashing Weapon 2 | . . . . . . 2 Piercing Weapon . | . . . . . . . Special Melee Weapon . | . . . . . . . Unidentified Prototypes 5 | . . . 3 . 2 . Corrupted Parts 6 | . . . . . . 6 System Corruption 31 | . . . . . . 31 Parts Lost 25 | . . 1 . . 1 23 Power 1 | . . . . . . 1 Propulsion 8 | . . 1 . . . 7 Utility 8 | . . . . . . 8 Weapon 8 | . . . . . 1 7 Highest Loss Streak 6 | . . 1 . . 1 6 To Critical Strikes . | . . . . . . . Average Slot Usage (%) 89 | . 100 85 80 84 95 88 Engine 9 | . 14 14 14 14 9 3 Core 1 | . . . . . . 4 Leg 4 | . . . . . . 10 Wheel 12 | . 28 14 14 14 13 3 Device 18 | . 14 14 9 13 36 20 Storage 11 | . 14 14 14 14 9 9 Processor 1 | . . . . . 9 1 Protection 5 | . . . . . . 13 Energy Gun 5 | . 14 . . . 10 3 Energy Cannon 12 | . 13 28 27 28 7 . Ballistic Gun 4 | . . . . . . 10 Peak Build Rating 36 | 7 7 7 16 9 22 36 Average Rating 14 | 4 7 6 8 7 16 24 On Entrance 7 | . 7 7 6 6 8 18 Naked Turns . | . . . . . . . Heaviest Build 49 | 15 32 32 32 33 40 49 Greatest Support 35 | 32 32 32 16 16 26 35 Greatest Overweight (x) 13 | 3 . 1 1 2 2 13 Average Overweight (x) 1 | . . . 1 1 1 1 Largest Inventory Capacity 15 | 8 15 15 15 15 15 15 Average Capacity 14 | 7 10 15 15 15 15 15 Most Carried 15 | 5 9 9 11 13 15 15 Average Carried 11 | 2 7 9 10 11 13 14 Final Capacity 15 | 8 15 15 15 15 15 15 Final Carried 15 | 1 9 9 11 12 15 10 Class Distribution -------------------- 55% | Mutant 34% | Scavenger-Mutant 9% | Infiltrator-Skirmisher Dominant Class ---------------- Mutant | -10/Materials Mutant | -10/Mines Mutant | -10/Exiles Mutant | -9/Mines Infiltrator-Skirmisher | -8/Materials Scavenger-Mutant | -8/Garrison Resources | -11 -10 -10 -10 -9 -8 -8 ----------- Run | Yrd Mat Min Exi Min Mat Gar Matter Collected 1388 | 270 60 . . 60 83 915 Remotely . | . . . . . . . Salvage Created 1713 | 116 360 95 . 32 140 970 Parts 91 | 6 19 3 . . 15 48 Haulers Intercepted . | . . . . . . . Recyclers Shooed 2 | . . . . . 2 . Parts Field Recycled . | . . . . . . . Retrieved Matter . | . . . . . . . Parts Self-Destructed . | . . . . . . . Prevented . | . . . . . . . Kills | -11 -10 -10 -10 -9 -8 -8 ------- Run | Yrd Mat Min Exi Min Mat Gar Combat Hostiles Destroyed 28 | . 4 1 . 1 2 20 Guns 23 | . 4 . . . 1 18 Cannons 3 | . . 1 . 1 . 1 Classes Destroyed 14 | 2 2 1 . . 3 6 Worker 1 | . . . . . 1 . Builder 1 | . . . . . 1 . Tunneler 1 | 1 . . . . . . Recycler 3 | 1 1 1 . . . . Watcher 3 | . 3 . . . . . Swarmer 2 | . . . . . . 2 Grunt 11 | . 4 . . 1 . 6 Brawler 1 | . . . . . . 1 Duelist 1 | . . . . . . 1 Sentry 6 | . . . . . 2 4 Specialist 1 | . . . . . . 1 Hunter 4 | . . . . . . 4 Programmer 1 | . . . . . . 1 Assembled 1 | . . 1 . . . . Best Kill Streak 3 | 2 3 1 . 1 1 3 Combat Bots Only 3 | . 2 1 . 1 1 3 Max Kills in Single Turn 1 | 1 1 1 . 1 1 1 Gunslinging . | . . . . . . . Exploded . | . . . . . . . Melee . | . . . . . . . Uniques/NPCs Destroyed . | . . . . . . . Combat | -11 -10 -10 -10 -9 -8 -8 -------- Run | Yrd Mat Min Exi Min Mat Gar Hostile Shots Fired 273 | . 20 15 . 7 8 223 Missed 81 | . 4 7 . 3 2 65 Damage Taken 3098 | . 208 141 . 45 89 2615 Core 676 | . 76 24 . 21 30 525 Absorbed by Shields . | . . . . . . . Regen/Repaired (Parts) 42 | . 42 . . . . . Core Remaining (%) 75 | 100 . . . 51 . . Volleys Fired 169 | 2 26 5 . 5 20 111 Largest 2 | 2 2 2 . 2 2 2 Hottest 125 | 80 120 120 . 120 125 90 Shots Fired 291 | 4 52 10 . 10 37 178 Gun 224 | 4 44 . . . 23 153 Cannon 67 | . 8 10 . 10 14 25 Launcher . | . . . . . . . Special . | . . . . . . . Kinetic 133 | . . . . . . 133 Thermal 49 | . 8 10 . 10 21 . Explosive . | . . . . . . . Electromagnetic 109 | 4 44 . . . 16 45 Robot Hit Streak 14 | 3 7 4 . 3 5 14 Robot Miss Streak 9 | . 4 2 . 2 5 9 Penetration Max 1 | . . . . . . 1 Secondary Targets 2 | . 1 . . . . 1 Max Gunslinging Chain 1 | . 1 . . . . 1 Shots Hit Robots 152 | 3 27 6 . 5 21 90 Core Hits 68 | 2 12 4 . 1 9 40 Critical Kills 3 | . . . . . 1 2 Critical Parts Destroyed 4 | . . . . . . 4 Critical Strikes 7 | . . . . . 1 6 Meltdown 1 | . . . . . 1 . Destroy 6 | . . . . . . 6 Melee Attacks . | . . . . . . . Impact . | . . . . . . . Slashing . | . . . . . . . Piercing . | . . . . . . . Sneak Attacks . | . . . . . . . Combat Hostiles . | . . . . . . . Follow-up Attacks . | . . . . . . . Damage Inflicted 2742 | 41 466 122 . 95 304 1714 Guns 2001 | 41 364 . . . 154 1442 Cannons 559 | . 71 122 . 95 126 145 Explosions 182 | . 31 . . . 24 127 Melee . | . . . . . . . Ramming . | . . . . . . . Kinetic 1141 | . . . . . . 1141 Thermal 650 | . 102 122 . 95 204 127 Explosive . | . . . . . . . Electromagnetic 951 | 41 364 . . . 100 446 Impact . | . . . . . . . Slashing . | . . . . . . . Piercing . | . . . . . . . Highest Corruption 49 | . . . . . . 49 Average Corruption 35 | . . . . . . 35 Corruption Purged . | . . . . . . . Corruption Blocked . | . . . . . . . Effects 89 | . . . . . . 89 Message Errors 22 | . . . . . . 22 Matter Fused 17 | . . . . . . 17 Heat Flow Errors 9 | . . . . . . 9 Energy Discharges 11 | . . . . . . 11 Parts Rejected 2 | . . . . . . 2 Parts Fused 4 | . . . . . . 4 Data Loss (minor) 7 | . . . . . . 7 Data Loss (major) 3 | . . . . . . 3 Misfires 5 | . . . . . . 5 Alerts 1 | . . . . . . 1 Weapon Failures 8 | . . . . . . 8 Overload Shots . | . . . . . . . Overflow Damage 15 | . 9 . . . 6 . Projectiles 9 | . 9 . . . . . Explosions 6 | . . . . . 6 . Melee . | . . . . . . . Knockbacks 1 | . . . . . . 1 Impact . | . . . . . . . Kinetic 1 | . . . . . . 1 Secondary . | . . . . . . . Self-Inflicted Damage 167 | . 35 . . . . 132 Shots 3 | . 1 . . . . 2 Rammed . | . . . . . . . Targets Rammed . | . . . . . . . Kicked . | . . . . . . . Crushed . | . . . . . . . Highest Temperature 324 | 36 180 140 . 324 154 263 Average Temperature 60 | 20 56 66 . 163 37 58 Received Heat Transfer 683 | . 96 38 . 24 27 498 Effects 1 | . . . . . . 1 Energy Bleed 1 | . . . . . . 1 Siege Activations . | . . . . . . . Robots Corrupted 1 | . . . . . . 1 Combat Hostiles 1 | . . . . . . 1 Parts Fried 5 | . 1 . . . . 4 Impact Corruptions . | . . . . . . . Robots Melted 1 | . . . . . 1 . Combat Hostiles 1 | . . . . . 1 . Parts Melted 5 | . 1 . . 1 3 . Heat Transferred 1176 | . 198 259 . 185 384 150 Parts Sabotaged . | . . . . . . . Parts Stolen . | . . . . . . . Parts Stripped . | . . . . . . . Power Chain Reactions 4 | . 1 . . . 1 2 Alert | -11 -10 -10 -10 -9 -8 -8 ------- Run | Yrd Mat Min Exi Min Mat Gar Peak Influence 858 | 10 176 49 . 49 103 858 Initial 7 | . 6 5 . . 7 3 Average 236 | 5 72 6 . 18 56 481 Maximum Alert Level 3 | . . . . . . 3 Low Security (%) 63 | 100 100 100 . 100 100 17 Level 1 7 | . . . . . . 17 Level 2 15 | . . . . . . 35 Level 3 13 | . . . . . . 29 Level 4 . | . . . . . . . Level 5 . | . . . . . . . High Security . | . . . . . . . Max Security . | . . . . . . . Squads Dispatched 5 | . 4 . . . 1 . Investigation 2 | . 2 . . . . . Extermination . | . . . . . . . Reinforcement 2 | . 2 . . . . . Assault . | . . . . . . . Garrison 1 | . . . . . 1 . Intercept . | . . . . . . . Searches Triggered . | . . . . . . . Construction Impeded . | . . . . . . . Haulers Reinforced . | . . . . . . . Active Scanning Responses . | . . . . . . . Cargo Convoy Interrupts . | . . . . . . . Stealth | -11 -10 -10 -10 -9 -8 -8 --------- Run | Yrd Mat Min Exi Min Mat Gar Distress Signals . | . . . . . . . Communications Jammed . | . . . . . . . Distress Signals . | . . . . . . . Times Spotted 75 | . 12 21 . 2 5 35 Peak Tracking Total 20 | . 2 20 . 2 2 5 Tactical Retreats 9 | . 2 1 . . 1 5 Traps | -11 -10 -10 -10 -9 -8 -8 ------- Run | Yrd Mat Min Exi Min Mat Gar Traps Triggered 3 | . . . . . . 3 Indirectly . | . . . . . . . Trap Hack Attempts . | . . . . . . . Triggered . | . . . . . . . Disarmed . | . . . . . . . Reprogrammed . | . . . . . . . Reused . | . . . . . . . Traps Extracted . | . . . . . . . Installed . | . . . . . . . Triggered . | . . . . . . . Machines | -11 -10 -10 -10 -9 -8 -8 ---------- Run | Yrd Mat Min Exi Min Mat Gar Machines Disabled 7 | . 3 . . . . 4 Max in Single Turn 3 | . 3 . . . . 2 Garrison Relay 3 | . . . . . . 3 Phase Generator 1 | . . . . . . 1 Machines Repaired . | . . . . . . . Machines Dismantled . | . . . . . . . Machines Sabotaged . | . . . . . . . Overloaded Fab Kills . | . . . . . . . Hacking | -11 -10 -10 -10 -9 -8 -8 --------- Run | Yrd Mat Min Exi Min Mat Gar Machines Accessed 8 | . 5 . . . 1 2 Terminals 6 | . 4 . . . . 2 Fabricators . | . . . . . . . Repair Stations 1 | . 1 . . . . . Recycling Units . | . . . . . . . Scanalyzers . | . . . . . . . Garrison Access 1 | . . . . . 1 . Total Hacks 31 | . 24 . . . 1 6 Successful 11 | . 8 . . . 1 2 Failed 20 | . 16 . . . . 4 Catastrophic 2 | . 1 . . . . 1 Database Lockouts . | . . . . . . . Manual 27 | . 20 . 1 . . 6 Terminals 27 | . 21 . . . . 6 Fabricators . | . . . . . . . Repair Stations 3 | . 3 . . . . . Recycling Units . | . . . . . . . Scanalyzers . | . . . . . . . Garrison Access 1 | . . . . . 1 . Terminal Hacks 2 | . 2 . . . . . Robot Analysis 2 | . 2 . . . . . Fabricator Hacks . | . . . . . . . Repair Station Hacks 2 | . 2 . . . . . Scan Component 1 | . 1 . . . . . Repair 1 | . 1 . . . . . Recycling Unit Hacks . | . . . . . . . Scanalyzer . | . . . . . . . Garrison Access Hacks 1 | . . . . . 1 . Unlock Access 1 | . . . . . 1 . Unauthorized Hacks 6 | . 4 . . . . 2 Terminals 6 | . 4 . . . . 2 Botnet 5 | . 4 . . . . 1 Override 1 | . . . . . . 1 Fabricators . | . . . . . . . Repair Stations . | . . . . . . . Recycling Units . | . . . . . . . Scanalyzers . | . . . . . . . Garrison Access . | . . . . . . . Data Cores Recovered . | . . . . . . . Used . | . . . . . . . Hacking Detections 7 | . 5 . . . . 2 Full Trace Events 6 | . 5 . . . . 1 Feedback Events . | . . . . . . . Feedback Blocked . | . . . . . . . Robot Schematics Acquired . | . . . . . . . Robots Built . | . . . . . . . Authchips . | . . . . . . . Time . | . . . . . . . Total Robot Build Rating . | . . . . . . . Part Schematics Acquired . | . . . . . . . Parts Built . | . . . . . . . Authchips . | . . . . . . . Time . | . . . . . . . Total Part Build Rating . | . . . . . . . Parts Repaired 1 | . 1 . . . . . Time 26 | . 26 . . . . . Parts Recycled . | . . . . . . . Recycled Matter . | . . . . . . . Retrieved Matter . | . . . . . . . Retrieved Components . | . . . . . . . Parts Scanalyzed . | . . . . . . . Part Schematics Acquired . | . . . . . . . Parts Damaged . | . . . . . . . Bothacking | -11 -10 -10 -10 -9 -8 -8 ------------ Run | Yrd Mat Min Exi Min Mat Gar Used RIF Installer 1 | . . . . . . 1 Robots Hacked . | . . . . . . . Non-combat . | . . . . . . . Combat . | . . . . . . . Robot Hacks Applied . | . . . . . . . Relay Couplers Released 12 | . . . . . . 12 Machine Destruction 12 | . . . . . . 12 Attached 2 | . . . . . . 2 Fabnet Peak Effective % . | . . . . . . . Robots Rewired . | . . . . . . . Allies Hacked . | . . . . . . . Hacks Repelled . | . . . . . . . Allies | -11 -10 -10 -10 -9 -8 -8 -------- Run | Yrd Mat Min Exi Min Mat Gar Total Allies 4 | . . 3 . . . 1 Largest Group 3 | . . 3 2 2 . 1 Highest-Rated Group 40 | . . 40 32 32 . 39 Highest-Rated Ally 39 | . . 16 16 16 . 39 Total Orders 1 | . . . 1 . . . RETURN 1 | . . . 1 . . . Ally Attacks 28 | . . 13 . 9 . 6 Total Damage 262 | . . 99 . 99 . 64 Kills 4 | . . 2 . 2 . . Allies Corrupted . | . . . . . . . Allies Melted . | . . . . . . . Intel | -11 -10 -10 -10 -9 -8 -8 ------- Run | Yrd Mat Min Exi Min Mat Gar Robot Analysis Total 2 | . 2 . . . . . Derelict Logs Recovered 2 | . . 1 . 1 . . Drone Launches 1 | . . . 1 . . . Drone Recoveries 1 | . . . 1 . . . Exploration | -11 -10 -10 -10 -9 -8 -8 ------------- Run | Yrd Mat Min Exi Min Mat Gar Turns Passed 5000 | 55 860 456 440 689 474 2026 Spaces Moved 2860 | 41 650 346 258 359 246 960 Core 27 | 18 . . . . . 9 Treads . | . . . . . . . Legs 546 | . . . . . . 546 Wheels 2170 | 23 650 346 258 359 246 288 Hover 117 | . . . . . . 117 Flight . | . . . . . . . Fastest Speed 50 | 50 100 100 115 115 95 95 Average Speed 130 | 86 100 114 115 128 116 166 Slowest Speed 700 | 200 100 115 115 130 130 700 Overloaded Moves . | . . . . . . . Propulsion Burnouts . | . . . . . . . Robots Hopped . | . . . . . . . Cave-ins Triggered 1 | . . . . . . 1 Exploration Rate (%) 57 | 2 76 78 67 69 24 84 Regions Visited 6 Branch Regions 3 Pre-discovered Areas 1 | . . . . 1 . . Known Exits Taken 1 | . . . . . 1 . Unknown Exits Taken 5 | 1 1 1 1 1 . . Scrap Searched 3 | . . 2 . 1 . . Spaces Dug . | . . . . . . . Terrain Destroyed 118 | . 19 . . . 6 93 Melee . | . . . . . . . Projectile 10 | . . . . . . 10 AOE 107 | . 19 . . . 6 82 Terrain Rammed . | . . . . . . . Walls Destroyed . | . . . . . . . Machines Disabled . | . . . . . . . Actions | -11 -10 -10 -10 -9 -8 -8 --------- Run | Yrd Mat Min Exi Min Mat Gar Total 3857 | 55 809 395 402 577 395 1224 Wait 659 | . 111 45 134 209 91 69 Move 2854 | 40 649 345 257 358 245 960 Hop . | . . . . . . . Pick Up 51 | 6 12 . 3 2 15 13 Fast Attach 18 | 2 . . . . 2 14 Attach 31 | 5 . . 3 2 5 16 Detach 4 | . . . 2 1 . 1 Swap 29 | . 6 . 1 . 9 13 Drop 29 | . 5 . 2 . 8 14 Fire 169 | 2 26 5 . 5 20 111 Melee . | . . . . . . . Ram . | . . . . . . . Kick . | . . . . . . . Crush . | . . . . . . . Escape Stasis 13 | . . . . . . 13 Rewire . | . . . . . . . Trap . | . . . . . . . Miscellaneous . | . . . . . . . Route ------- -11/Scrapyard -10/Materials (discovered 4 exits: [*Mat x3] / [*Min]) -10/Mines (discovered 3 exits: [*Mat x2] / *Exi) -10/Exiles -9/Mines -8/Materials -8/Garrison (discovered 3 exits: *Fac x3) History --------- Turn | Location | Event 7 | -11/Scrapyard | Discovered new exit (range 16) 56 | -11/Scrapyard | Entered Materials 295 | -10/Materials | Discovered new exit (range 12) 317 | -10/Materials | Build established: Mutant 553 | -10/Materials | Discovered new exit (range 5) 671 | -10/Materials | Discovered new exit (range 10) 752 | -10/Materials | Discovered new exit (range 15) 849 | -10/Materials | Repaired EM Pulse Gun 916 | -10/Materials | Entered Mines 917 | -10/Mines | Assembled infested the area 930 | -10/Mines | Met 8R-AWN 941 | -10/Mines | Discovered new exit (range 14) 962 | -10/Mines | Assisted by bots powering up and referring to "LRC-V3" 1094 | -10/Mines | Discovered new exit (range 3) 1170 | -10/Mines | Learned Materials emergency access door positions 1325 | -10/Mines | Discovered new exit (range 5) 1372 | -10/Mines | Entered Exiles 1372 | -10/Exiles | Accompanied by 2 allies 1401 | -10/Exiles | Welcomed by 8R-AWN 1421 | -10/Exiles | Met EX-HEX 1452 | -10/Exiles | Met EX-BIN 1469 | -10/Exiles | Aligned with FarCom system 1470 | -10/Exiles | Given EX-Vault access code 1497 | -10/Exiles | Opened EX-Vault 1508 | -10/Exiles | Found Prototype Special Weapon 1509 | -10/Exiles | Identified Field Lobotomy Kit 1520 | -10/Exiles | Found Prototype Device 1522 | -10/Exiles | Identified Trap Reconfigurator 1527 | -10/Exiles | Found Prototype Device 1528 | -10/Exiles | Identified Supersonic Drone Bay 1684 | -10/Exiles | Warned to stay clear of 0b10 Research branches 1717 | -10/Exiles | Met EX-DEC 1792 | -10/Exiles | Discovered new exit (range 14) 1812 | -10/Exiles | Left Exiles lab with Supersonic Drone Bay 1812 | -10/Exiles | Entered Mines 1812 | -9/Mines | Accompanied by 2 allies 2322 | -9/Mines | Learned location of Zion (-6) 2492 | -9/Mines | Discovered new exit (range 7) 2501 | -9/Mines | Entered Materials 2501 | -8/Materials | Evolved 4 slots: Utility x4 2778 | -8/Materials | Garrison activated, responded to threat 2805 | -8/Materials | Build established: Infiltrator-Skirmisher 2877 | -8/Materials | Identified exit to Garrison 2975 | -8/Materials | Entered Garrison 2989 | -8/Garrison | Triggered checkpoint 3053 | -8/Garrison | Triggered checkpoint 3061 | -8/Garrison | Garrison Relay disabled 3221 | -8/Garrison | Triggered checkpoint 3277 | -8/Garrison | Identified exit to Factory 3333 | -8/Garrison | Phase Generator disabled 3450 | -8/Garrison | Lost 6 parts (2n3u1w) 3463 | -8/Garrison | System corruption reached 10% 3556 | -8/Garrison | System corruption reached 30% 3859 | -8/Garrison | Rescued a captive Derelict 3888 | -8/Garrison | Build established: Scavenger-Mutant 3917 | -8/Garrison | Core integrity fell below 50% 4095 | -8/Garrison | Crushed by falling debris 4181 | -8/Garrison | Triggered checkpoint 4329 | -8/Garrison | Triggered checkpoint 4406 | -8/Garrison | Garrison Relay disabled 4461 | -8/Garrison | Installed Relay Interface Framework 4716 | -8/Garrison | Lost 6 parts (2n3u1w) 4925 | -8/Garrison | Triggered checkpoint 4939 | -8/Garrison | Core integrity fell below 20% 4976 | -8/Garrison | Garrison Relay disabled 5001 | -8/Garrison | Destroyed by P-60 Hacker with Shock Rifle Last Messages --------------- 04963_ Acquired 47 matter. 04965_ Acquired 107 matter. 04969_ Acquired 3 matter. 04972_ EE:CJXMWWD=>PPTLQVA50Y T5BBEZH3,RA|UBBMR 04976_ HV Slug penetrates Garrison Relay. 04976_ Garrison Relay disabled. 04976_ Relay Coupler [Hunter] tumbles out of relay unit. 04976_ Relay Coupler [Duelist] tumbles out of relay unit. 04976_ Relay Coupler [Grunt] tumbles out of relay unit. 04976_ Relay Coupler [Demolisher] tumbles out of relay unit. 04976_ HV Slug penetrates Garrison Relay. 04976_ P-60 Hacker springs to life. 04977_ Gravmag System destroyed. 04978_ HV Slug penetrates Wall. 04980_ HV Slug penetrates Garrison Relay. 04982_ HV Slug penetrates Wall. 04988_ NV =/6GCB:58UP30BG%LZMEDR0 04988_ HV Slug penetrates Wall. 04992_ HV Slug penetrates Garrison Relay. 04992_ Bore Cannon destroyed. Map ----- +----------------------------------------------------+ | ####### ## ## #### ### ##????????????????? | | ####### ## ## #### ### ##????????????????? | | ####### ######## #### ##????????????????? | | ######## #### ### ##????????????????? | | ####### ##????## ### ##????????????????? | | ####### ##????## #### ### ##????????????????? | | ####### ##????## #### ### #######???????????? | | ####### ##????## #### ### #######???????????? | | ##????## ?????????? | | ##????## ?????????? | | ! * ##????######## ######## ##????????????? | | ####### # ##????## ##### ######## ##????????????? | | ### ### # ##??????????## ##?????????????????????? | | ##### # ##??????????## ##?????????????????????? | | # ##??????????## ## ????????????????????? | | ####### ###?????????## ## ????????????????????? | | ######### ###?????????##b"# ##??????????????????? | | ####??## ^^##?????????##"## ##### "???????